fUST/lending_fUST_20240514
["ID","MTS","AMOUNT","RATE_DAILY","PERIOD"]
[326977879,1715670649947,-500.0,0.00079452,120]
[326977880,1715670649960,-508.086962,0.00079452,120]
[326977881,1715670649970,-505.13964292,0.00079452,120]
[326977882,1715670649979,-500.0,0.00079452,120]
[326977883,1715670650106,-500.0,0.00079452,120]
[326977884,1715670650122,-513.22431587,0.00079452,120]
[326977885,1715670650132,-501.72841346,0.00079452,120]
[326977886,1715670650142,-174.74060324,0.00079452,120]
[326977887,1715670650151,-508.73464173,0.00079452,120]
[326977888,1715670650160,-512.88258788,0.00079452,120]
[326977889,1715670650170,-502.58215467,0.00079452,120]
[326977890,1715670650179,-505.81557187,0.00079452,120]
[326977891,1715670650188,-191.54466789,0.00079452,120]
[326977892,1715670650198,-500.9353172,0.00079452,120]
[326977893,1715670650216,-501.67187931,0.00079452,120]
[326977894,1715670650225,-504.44198053,0.00079452,120]
[326977895,1715670650235,-500.0,0.00079452,120]
[326977896,1715670650243,-502.92127346,0.00079452,120]
[326977897,1715670650254,-505.74419569,0.00079452,120]
[326977898,1715670650264,-500.0,0.00079452,120]
[326977899,1715670650273,-503.45139742,0.00079452,120]
[326977900,1715670650282,-503.47948464,0.00079452,120]
[326977901,1715670650291,-506.98477139,0.00079452,120]
[326977902,1715670650300,-500.0,0.00079452,120]
[326977903,1715670650310,-507.0,0.00079452,120]
[326977904,1715670650319,-504.66862188,0.00079452,120]
[326977905,1715670650329,-510.87338533,0.00079452,120]
[326977906,1715670650348,-508.17715079,0.00079452,120]
[326977907,1715670650358,-505.19475979,0.00079452,120]
[326977908,1715670650368,-504.91264759,0.00079452,120]
[326977909,1715670650378,-506.03589697,0.00079452,120]
[326977910,1715670650387,-500.0,0.00079452,120]
[326977911,1715670650397,-504.8467975,0.00079452,120]
[326977912,1715670650406,-618.01241622,0.00079452,120]
[326977913,1715670650416,-500.0,0.00079452,120]
[326977914,1715670650426,-500.0,0.00079452,120]
[326977915,1715670650435,-508.42120719,0.00079452,120]
[326977916,1715670650445,-502.94616136,0.00079452,120]
[326977917,1715670650459,-500.0,0.00079452,120]
[326977918,1715670650469,-502.62554742,0.00079452,120]
[326977919,1715670650479,-154.81422293,0.00079452,120]
[326977920,1715670650489,-503.32845027,0.00079452,120]
[326977921,1715670650500,-502.92061456,0.00079452,120]
[326977922,1715670650509,-503.72456253,0.00079452,120]
[326977923,1715670650521,-500.0,0.00079452,120]
[326977924,1715670650533,-501.70025537,0.00079452,120]
[326977925,1715670650544,-500.0,0.00079452,120]
[326977926,1715670650554,-513.4686533,0.00079452,120]
[326977927,1715670650563,-500.0,0.00079452,120]
[326977928,1715670650573,-1978.63,0.00079452,120]
[326977929,1715670650582,-500.0,0.00079452,120]
[326977930,1715670650592,-500.0,0.00079452,120]
[326977931,1715670650601,-500.0,0.00079452,120]
[326977932,1715670650611,-522.91391861,0.00079452,120]
[326977933,1715670650621,-500.0,0.00079452,120]
[326977934,1715670650630,-500.0,0.00079452,120]
[326977935,1715670650640,-500.0,0.00079452,120]
[326977936,1715670650649,-500.0,0.00079452,120]
[326977937,1715670650658,-500.0,0.00079452,120]
[326977938,1715670650667,-505.81254466,0.00079452,120]
[326977939,1715670650677,-611.52331351,0.00079452,120]
[326977940,1715670650686,-500.0,0.00079452,120]
[326977941,1715670650696,-500.0,0.00079452,120]
[326977942,1715670650710,-506.45026838,0.00079452,120]
[326977943,1715670650719,-502.02692124,0.00079452,120]
[326977944,1715670650728,-503.63162161,0.00079452,120]
[326977945,1715670650738,-514.51069593,0.00079452,120]
[326977946,1715670650748,-500.0,0.00079452,120]
[326977947,1715670650758,-414.37852674,0.00079452,120]
[326977948,1715670650767,-500.0,0.00079452,120]
[326977949,1715670650777,-500.0,0.00079452,120]
[326977950,1715670650787,-507.3864313,0.00079452,120]
[326977951,1715670650797,-503.05176797,0.00079452,120]
[326977952,1715670650806,-547.31999183,0.00079452,120]
[326977953,1715670650816,-500.0,0.00079452,120]
[326977954,1715670650826,-507.55134672,0.00079452,120]
[326977955,1715670650836,-500.0,0.00079452,120]
[326977956,1715670650845,-507.40841869,0.00079452,120]
[326977957,1715670650854,-500.0,0.00079452,120]
[326977958,1715670650864,-500.0,0.00079452,120]
[326977959,1715670650873,-500.0,0.00079452,120]
[326977960,1715670650882,-506.15271021,0.00079452,120]
[326977961,1715670650891,-502.36816493,0.00079452,120]
[326977962,1715670650900,-508.17613964,0.00079452,120]
[326977963,1715670650909,-502.31849391,0.00079452,120]
[326977964,1715670650919,-518.7177008,0.00079452,120]
[326977965,1715670650928,-500.0,0.00079452,120]
[326977966,1715670650938,-500.0,0.00079452,120]
[326977967,1715670650947,-506.75129477,0.00079452,120]
[326977968,1715670650960,-500.0,0.00079452,120]
[326977969,1715670650970,-248.12785161,0.00079452,120]
[326977970,1715670650979,-500.0,0.00079452,120]
[326977971,1715670650989,-500.0,0.00079452,120]
[326977972,1715670650999,-500.0,0.00079452,120]
[326977973,1715670651008,-500.0,0.00079452,120]
[326977974,1715670651018,-506.20277707,0.00079452,120]
[326977975,1715670651027,-500.0,0.00079452,120]
[326977976,1715670651037,-503.10576083,0.00079452,120]
[326977977,1715670651047,-179.97925583,0.00079452,120]
[326977978,1715670651056,-501.3110064,0.00079452,7]
[326977979,1715670651066,-502.70096328,0.00079452,2]
[326977980,1715670651075,-502.16581407,0.00079452,120]
[326977981,1715670651084,-583.57143398,0.00079452,120]
[326977982,1715670651093,-518.61373737,0.00079452,120]
[326977983,1715670651102,-501.08864485,0.00079452,120]
[326977984,1715670651111,-504.92835363,0.00079452,120]
[326977985,1715670651120,-396.86101582,0.00079452,120]
[326977986,1715670651130,-517.17839722,0.00079452,120]
[326977987,1715670651139,-502.47140459,0.00079452,120]
[326977988,1715670651148,-508.92247996,0.00079452,120]
[326977989,1715670651157,-505.09456744,0.00079452,120]
[326977990,1715670651166,-504.27301036,0.00079452,120]
[326977991,1715670651175,-500.0,0.00079452,120]
[326977992,1715670651185,-3001.39,0.00079452,120]
[326977993,1715670651195,-502.27929574,0.00079452,120]
[326977994,1715670651209,-512.87241477,0.00079452,120]
[326977995,1715670651220,-501.55370852,0.00079452,20]
[326977996,1715670651229,-513.52095829,0.00079452,120]
[326977997,1715670651239,-445.57975879,0.00079452,120]
[326977998,1715670651250,-623.23304178,0.00079452,120]
[326977999,1715670651260,-500.0,0.00079452,120]
[326978000,1715670651271,-531.70916206,0.00079452,120]
[326978001,1715670651280,-500.0,0.00079452,120]
[326978002,1715670651292,-509.90914375,0.00079452,120]
[326978003,1715670651302,-500.0,0.00079452,120]
[326978004,1715670651313,-502.57209962,0.00079452,120]
[326978005,1715670651322,-594.80680522,0.00079452,120]
[326978006,1715670651331,-500.0,0.00079452,120]
[326978007,1715670651340,-500.0,0.00079452,120]
[326978008,1715670651350,-594.20099527,0.00079452,120]
[326978009,1715670651360,-500.0,0.00079452,120]
[326978010,1715670651371,-173.39265728,0.00079452,120]
[326978011,1715670651380,-506.1080124,0.00079452,120]
[326978012,1715670651392,-503.63173839,0.00079452,120]
[326978013,1715670651402,-504.29783254,0.00079452,120]
[326978014,1715670651412,-500.0,0.00079452,120]
[326978015,1715670651422,-506.06031072,0.00079452,120]
[326978016,1715670651432,-500.0,0.00079452,120]
[326978017,1715670651443,-500.0,0.00079452,120]
[326978018,1715670651455,-508.9988933,0.00079452,120]
[326978019,1715670651466,-516.84461128,0.00079452,120]
[326978020,1715670651476,-497.33519803,0.00079452,120]
[326978021,1715670651486,-511.01641409,0.00079452,120]
[326978022,1715670651496,-500.0,0.00079452,120]
[326978023,1715670651505,-505.37848086,0.00079452,120]
[326978024,1715670651516,-509.03842591,0.00079452,120]
[326978025,1715670651525,-514.44304674,0.00079452,120]
[326978026,1715670651535,-505.1641304,0.00079452,120]
[326978027,1715670651544,-512.1898929,0.00079452,120]
[326978028,1715670651553,-602.34431614,0.00079452,120]
[326978029,1715670651562,-502.26516611,0.00079452,120]
[326978030,1715670651572,-500.0,0.00079452,120]
[326978031,1715670651581,-503.8313222,0.00079452,120]
[326978032,1715670651590,-502.75709356,0.00079452,120]
[326978033,1715670651599,-500.0,0.00079452,120]
[326978034,1715670651609,-547.78907432,0.00079452,120]
[326978035,1715670651618,-589.59520463,0.00079452,120]
[326978036,1715670651627,-505.67873758,0.00079452,120]
[326978037,1715670651636,-500.0,0.00079452,120]
[326978038,1715670651646,-503.92326131,0.00079452,120]
[326978039,1715670651655,-507.48525704,0.00079452,120]
[326978040,1715670651664,-505.2511928,0.00079452,120]
[326978041,1715670651676,-523.39422754,0.00079452,120]
[326978042,1715670651685,-500.0,0.00079452,120]
[326978043,1715670651694,-504.21809198,0.00079452,120]
[326978044,1715670651705,-298.93059262,0.00079452,120]
[326978045,1715670651714,-349.91281919,0.00079452,120]
[326978046,1715670651723,-502.55782773,0.00079452,120]
[326978047,1715670651733,-504.13476022,0.00079452,120]
[326978048,1715670651742,-500.0,0.00079452,120]
[326978049,1715670651751,-526.13002878,0.00079452,120]
[326978050,1715670651760,-319.90201385,0.00079452,120]
[326978051,1715670651770,-519.61712227,0.00079452,120]
[326978052,1715670651779,-511.97898073,0.00079452,120]
[326978053,1715670651788,-532.09043641,0.00079452,120]
[326978054,1715670651798,-510.1605297,0.00079452,120]
[326978055,1715670651807,-507.39440756,0.00079452,120]
[326978056,1715670651817,-726.59987774,0.00079452,120]
[326978057,1715670651827,-502.563173,0.00079452,120]
[326978058,1715670651836,-502.19121166,0.00079452,120]
[326978059,1715670651845,-500.0,0.00079452,120]
[326978060,1715670651854,-506.92851518,0.00079452,120]
[326978061,1715670651864,-502.22370643,0.00079452,120]
[326978062,1715670651873,-509.26412798,0.00079452,120]
[326978063,1715670651882,-513.52493505,0.00079452,120]
[326978064,1715670651892,-502.93615643,0.00079452,120]
[326978065,1715670651901,-510.37132118,0.00079452,120]
[326978066,1715670651910,-503.13293457,0.00079452,120]
[326978067,1715670651920,-302.25202281,0.00079452,120]
[326978068,1715670651929,-500.0,0.00079452,120]
[326978069,1715670651938,-503.84569729,0.00079452,120]
[326978070,1715670651948,-500.0,0.00079452,120]
[326978071,1715670651959,-501.638279,0.00079452,120]
[326978072,1715670651969,-500.0,0.00079452,120]
[326978073,1715670651978,-510.43395705,0.00079452,120]
[326978074,1715670651988,-507.82559965,0.00079452,120]
[326978075,1715670651997,-515.02385189,0.00079452,120]
[326978076,1715670652007,-582.26406961,0.00079452,120]
[326978077,1715670652017,-518.90669431,0.00079452,120]
[326978078,1715670652027,-509.64771751,0.00079452,120]
[326978079,1715670652036,-503.18650572,0.00079452,120]
[326978080,1715670652045,-503.57998633,0.00079452,120]
[326978081,1715670652055,-500.0,0.00079452,120]
[326978082,1715670652064,-168.30792774,0.00079452,120]
[326978083,1715670652074,-282.40790141,0.00079452,120]
[326978084,1715670652083,-578.87358056,0.00079452,120]
[326978085,1715670652094,-506.16242033,0.00079452,120]
[326978086,1715670652104,-522.84123545,0.00079452,120]
[326978087,1715670652113,-507.49475006,0.00079452,120]
[326978088,1715670652123,-500.0,0.00079452,120]
[326978089,1715670652133,-500.0,0.00079452,120]
[326978090,1715670652142,-500.0,0.00079452,120]
[326978091,1715670652152,-500.0,0.00079452,120]
[326978092,1715670652162,-504.81661055,0.00079452,120]
[326978093,1715670652172,-500.0,0.00079452,120]
[326978094,1715670652181,-500.0,0.00079452,120]
[326978095,1715670652192,-517.76991674,0.00079452,120]
[326978096,1715670652287,-502.77520182,0.00079452,120]
[326978097,1715670652300,-500.0,0.00079452,120]
[326978098,1715670652310,-500.0,0.00079452,120]
[326978099,1715670652319,-500.0,0.00079452,120]
[326978100,1715670652328,-501.56950154,0.00079452,120]
[326978101,1715670652337,-502.04,0.00079452,120]
[326978102,1715670652346,-508.75703044,0.00079452,120]
[326978103,1715670652355,-564.92468143,0.00079452,120]
[326978104,1715670652364,-500.0,0.00079452,120]
[326978105,1715670652373,-514.27209699,0.00079452,120]
[326978106,1715670652382,-500.0,0.00079452,120]
[326978107,1715670652391,-500.0,0.00079452,120]
[326978108,1715670652400,-507.12207291,0.00079452,120]
[326978109,1715670652409,-504.54792356,0.00079452,120]
[326978110,1715670652418,-509.11120929,0.00079452,120]
[326978111,1715670652427,-500.0,0.00079452,120]
[326978112,1715670652437,-172.66581937,0.00079452,120]
[326978113,1715670652446,-621.15827863,0.00079452,120]
[326978114,1715670652457,-503.63467834,0.00079452,120]
[326978115,1715670652465,-5468.95,0.00079452,120]
[326978116,1715670652474,-231.98325175,0.00079452,120]
[326978117,1715670652483,-500.0,0.00079452,120]
[326978118,1715670652492,-513.63123342,0.00079452,120]
[326978119,1715670652501,-505.37547752,0.00079452,120]
[326978120,1715670652510,-501.79549273,0.00079452,120]
[326978121,1715670652520,-506.35662925,0.00079452,120]
[326978122,1715670652529,-504.57515027,0.00079452,120]
[326978123,1715670652538,-501.77381646,0.00079452,120]
[326978124,1715670652547,-502.80519094,0.00079452,120]
[326978125,1715670652555,-500.0,0.00079452,120]
[326978126,1715670652564,-505.30489645,0.00079452,120]
[326978127,1715670652573,-500.0,0.00079452,120]
[326978128,1715670652583,-505.35266207,0.00079452,120]
[326978129,1715670652591,-505.45280045,0.00079452,120]
[326978130,1715670652601,-436.33124635,0.00079452,120]
[326978131,1715670652610,-504.55555756,0.00079452,120]
[326978132,1715670652620,-505.07029468,0.00079452,120]
[326978133,1715670652629,-533.97848864,0.00079452,120]
[326978134,1715670652638,-500.0,0.00079452,120]
[326978135,1715670652647,-518.74001377,0.00079452,120]
[326978136,1715670652656,-503.00895911,0.00079452,120]
[326978137,1715670652666,-506.88,0.00079452,120]
[326978138,1715670652675,-500.0,0.00079452,120]
[326978139,1715670652684,-506.78617303,0.00079452,120]
[326978140,1715670652693,-270.34038655,0.00079452,120]
[326978141,1715670652704,-181.19797941,0.00079452,120]
[326978142,1715670652714,-631.26785707,0.00079452,120]
[326978143,1715670652723,-500.0,0.00079452,120]
[326978144,1715670652732,-5000.0,0.00079452,120]
[326978145,1715670652741,-600.29035964,0.00079452,120]
[326978146,1715670652750,-501.65938246,0.00079452,120]
[326978147,1715670652759,-610.95968164,0.00079452,120]
[326978148,1715670652768,-502.65472074,0.00079452,120]
[326978149,1715670652778,-381.05028867,0.00079452,120]
[326978150,1715670652787,-507.81596062,0.00079452,120]
[326978151,1715670652796,-1000.0,0.00079452,120]
[326978152,1715670652805,-500.0,0.00079452,120]
[326978153,1715670652814,-500.0,0.00079452,120]
[326978154,1715670652823,-500.0,0.00079452,120]
[326978155,1715670652833,-1657.88,0.00079452,120]
[326978156,1715670652842,-501.59453709,0.00079452,120]
[326978157,1715670652851,-505.11912915,0.00079452,120]
[326978158,1715670652860,-506.42569917,0.00079452,120]
[326978159,1715670652870,-507.61656315,0.00079452,120]
[326978160,1715670652879,-511.23974304,0.00079452,120]
[326978161,1715670652888,-22697.61,0.00079452,120]
[326978162,1715670652897,-2105.5,0.00079452,120]
[326978163,1715670652907,-507.68892896,0.00079452,120]
[326978164,1715670652916,-494.76523323,0.00079452,120]
[326978165,1715670652926,-500.0,0.00079452,120]
[326978166,1715670652935,-20000.0,0.00079452,120]
[326978167,1715670652945,-500.0,0.00079452,120]
[326978168,1715670652957,-502.96524154,0.00079452,120]
[326978169,1715670652966,-833.36,0.00079452,120]
[326978170,1715670652977,-506.24974789,0.00079452,120]
[326978171,1715670652986,-560.45,0.00079452,120]
[326978172,1715670652995,-1711.52,0.00079452,120]
[326978173,1715670653004,-500.0,0.00079452,120]
[326978174,1715670653014,-238.45170937,0.00079452,120]
[326978175,1715670653023,-505.40372845,0.00079452,120]
[326978176,1715670653032,-500.0,0.00079452,120]
[326978177,1715670653041,-500.0,0.00079452,120]
[326978178,1715670653051,-500.0,0.00079452,120]
[326978179,1715670653060,-500.0,0.00079452,120]
[326978180,1715670653069,-185.56645546,0.00079452,120]
[326978181,1715670653079,-500.0,0.00079452,120]
[326978182,1715670653088,-500.0,0.00079452,120]
[326978183,1715670653099,-500.0,0.00079452,120]
[326978184,1715670653108,-500.0,0.00079452,120]
[326978185,1715670653118,-500.0,0.00079452,120]
[326978186,1715670653127,-171.29914407,0.00079452,120]
[326978187,1715670653137,-500.0,0.00079452,120]
[326978188,1715670653147,-500.0,0.00079452,120]
[326978189,1715670653156,-500.0,0.00079452,120]
[326978190,1715670653167,-610.55,0.00079452,120]
[326978191,1715670653177,-711.67,0.00079452,120]
[326978192,1715670653186,-1992.47,0.00079452,120]
[326978193,1715670653195,-500.0,0.00079452,120]
[326978194,1715670653205,-500.0,0.00079452,120]
[326978195,1715670653218,-500.0,0.00079452,120]
[326978196,1715670653228,-500.0,0.00079452,120]
[326978197,1715670653237,-1003.45082141,0.000795,120]
[326978198,1715670653248,-1000.0,0.000797,120]
[326978199,1715670653259,-1000.0,0.0007971,120]
[326978200,1715670653269,-500.0,0.00079726,120]
[326978201,1715670653278,-500.0,0.00079726,120]
[326978202,1715670653290,-1667.18,0.00079726,120]
[326978203,1715670653299,-496.71962602,0.00079726,120]
[326978204,1715670653308,-500.0,0.00079726,120]
[326978205,1715670653317,-531.47901147,0.00079726,120]
[326978206,1715670653326,-238.44088369,0.00079726,120]
[326978207,1715670653334,-500.0,0.00079726,120]
[326978208,1715670653343,-500.0,0.00079726,120]
[326978209,1715670653352,-500.0,0.00079726,120]
[326978210,1715670653362,-500.0,0.00079726,120]
[326978211,1715670653371,-500.0,0.00079726,120]
[326978212,1715670653380,-502.99509287,0.00079726,120]
[326978213,1715670653389,-229.28273307,0.00079726,120]
[326978214,1715670653398,-500.0,0.00079726,120]
[326978215,1715670653407,-178.07915765,0.00079726,120]
[326978216,1715670653417,-500.0,0.00079726,120]
[326978217,1715670653426,-593.2929498,0.00079726,120]
[326978218,1715670653435,-500.0,0.00079726,120]
[326978219,1715670653444,-456.32037754,0.00079726,120]
[326978220,1715670653453,-510.96535842,0.00079726,120]
[326978221,1715670653463,-527.58654188,0.00079726,120]
[326978222,1715670653471,-1978.63,0.00079726,120]
[326978223,1715670653480,-505.44348738,0.00079726,120]
[326978224,1715670653489,-511.27129133,0.00079726,120]
[326978225,1715670653499,-514.59840852,0.00079726,120]
[326978226,1715670653510,-500.0,0.00079726,120]
[326978227,1715670653519,-500.0,0.00079726,120]
[326978228,1715670653529,-506.28010142,0.00079726,120]
[326978229,1715670653538,-500.0,0.00079726,120]
[326978230,1715670653547,-500.0,0.00079726,120]
[326978231,1715670653556,-500.0,0.00079726,120]
[326978232,1715670653565,-500.0,0.00079726,120]
[326978233,1715670653574,-500.0,0.00079726,120]
[326978234,1715670653583,-500.0,0.00079726,120]
[326978235,1715670653592,-500.0,0.00079726,120]
[326978236,1715670653601,-500.0,0.00079726,120]
[326978237,1715670653610,-508.12728422,0.00079726,120]
[326978238,1715670653619,-512.6458503,0.00079726,120]
[326978239,1715670653628,-500.0,0.00079726,120]
[326978240,1715670653637,-500.0,0.00079726,120]
[326978241,1715670653646,-500.0,0.00079726,120]
[326978242,1715670653655,-500.0,0.00079726,120]
[326978243,1715670653663,-311.48800465,0.00079726,120]
[326978244,1715670653672,-500.0,0.00079726,120]
[326978245,1715670653681,-500.0,0.00079726,120]
[326978246,1715670653690,-321.07020624,0.00079726,120]
[326978247,1715670653698,-504.76943524,0.00079726,120]
[326978248,1715670653710,-540.97697048,0.00079726,120]
[326978249,1715670653719,-500.0,0.00079726,120]
[326978250,1715670653728,-3001.39,0.00079726,120]
[326978251,1715670653737,-523.00680979,0.00079726,120]
[326978252,1715670653746,-511.89282242,0.00079726,120]
[326978253,1715670653756,-506.90118474,0.00079726,120]
[326978254,1715670653765,-193.54211297,0.00079726,120]
[326978255,1715670653774,-500.0,0.00079726,120]
[326978256,1715670653784,-500.0,0.00079726,120]
[326978257,1715670653794,-506.02918978,0.00079726,120]
[326978258,1715670653804,-234.21932986,0.00079726,120]
[326978259,1715670653814,-500.0,0.00079726,120]
[326978260,1715670653823,-500.0,0.00079726,120]
[326978261,1715670653832,-509.03420206,0.00079726,120]
[326978262,1715670653842,-508.66644917,0.00079726,120]
[326978263,1715670653852,-500.0,0.00079726,120]
[326978264,1715670653861,-505.59310942,0.00079726,120]
[326978265,1715670653870,-300.25444023,0.00079726,120]
[326978266,1715670653879,-500.0,0.00079726,120]
[326978267,1715670653888,-500.0,0.00079726,120]
[326978268,1715670653897,-196.23626161,0.00079726,120]
[326978269,1715670653906,-152.19568456,0.00079726,120]
[326978270,1715670653915,-500.0,0.00079726,120]
[326978271,1715670653924,-307.78528505,0.00079726,120]
[326978272,1715670653933,-507.63244682,0.00079726,120]
[326978273,1715670653942,-500.0,0.00079726,120]
[326978274,1715670653952,-505.31255802,0.00079726,120]
[326978275,1715670653962,-500.0,0.00079726,120]
[326978276,1715670653971,-223.94381313,0.00079726,120]
[326978277,1715670653980,-573.29632984,0.00079726,120]
[326978278,1715670653989,-500.0,0.00079726,120]
[326978279,1715670653998,-431.33532414,0.00079726,120]
[326978280,1715670654008,-502.04,0.00079726,120]
[326978281,1715670654017,-500.0,0.00079726,120]
[326978282,1715670654026,-518.52157157,0.00079726,120]
[326978283,1715670654035,-516.09009659,0.00079726,120]
[326978284,1715670654044,-500.0,0.00079726,120]
[326978285,1715670654053,-5468.95,0.00079726,120]
[326978286,1715670654063,-502.96161844,0.00079726,120]
[326978287,1715670654072,-517.62237218,0.00079726,120]
[326978288,1715670654081,-500.0,0.00079726,120]
[326978289,1715670654091,-224.69252494,0.00079726,120]
[326978290,1715670654100,-506.88,0.00079726,120]
[326978291,1715670654169,-500.0,0.00079726,120]
[326978292,1715670654187,-500.0,0.00079726,120]
[326978293,1715670654197,-4993.6243012,0.00079726,120]
[326978294,1715670654211,-1000.0,0.00079726,120]
[326978295,1715670654221,-500.0,0.00079726,120]
[326978296,1715670654231,-627.28661101,0.00079726,120]
[326978297,1715670654240,-514.71734226,0.00079726,120]
[326978298,1715670654251,-1657.88,0.00079726,120]
[326978299,1715670654260,-22697.61,0.00079726,120]
[326978300,1715670654270,-2105.5,0.00079726,120]
[326978301,1715670654279,-500.0,0.00079726,120]
[326978302,1715670654288,-20000.0,0.00079726,120]
[326978303,1715670654299,-500.0,0.00079726,120]
[326978304,1715670654309,-833.36,0.00079726,120]
[326978305,1715670654317,-560.45,0.00079726,120]
[326978306,1715670654327,-1711.52,0.00079726,120]
[326978307,1715670654336,-500.0,0.00079726,120]
[326978308,1715670654345,-511.08491783,0.00079726,120]
[326978309,1715670654354,-500.0,0.00079726,120]
[326978310,1715670654363,-500.0,0.00079726,120]
[326978311,1715670654372,-500.0,0.00079726,120]
[326978312,1715670654381,-500.0,0.00079726,120]
[326978313,1715670654391,-500.0,0.00079726,120]
[326978314,1715670654401,-500.0,0.00079726,120]
[326978315,1715670654411,-508.6877606,0.00079726,120]
[326978316,1715670654420,-500.0,0.00079726,120]
[326978317,1715670654430,-500.0,0.00079726,120]
[326978318,1715670654440,-186.4554578,0.00079726,120]
[326978319,1715670654449,-500.0,0.00079726,120]
[326978320,1715670654460,-610.55,0.00079726,120]
[326978321,1715670654469,-711.67,0.00079726,120]
[326978322,1715670654479,-1992.47,0.00079726,120]
[326978323,1715670654488,-507.69716969,0.00079726,120]
[326978324,1715670654497,-500.0,0.00079726,120]
[326978325,1715670654507,-500.0,0.00079726,120]
[326978326,1715670654516,-500.0,0.00079726,120]
[326978327,1715670654525,-150.5,0.0007997,35]
[326978328,1715670654534,-150.5,0.0007998,35]
[326978329,1715670654543,-150.5,0.0007999,35]
[326978330,1715670654553,-1002.87959058,0.00079999,120]
[326978331,1715670654562,-324.67703494,0.0008,120]
[326978332,1715670654572,-1000.0,0.0008,120]
[326978333,1715670654581,-60076.31890263,0.0008,120]
[326978334,1715670654591,-7125.05813104,0.0008,120]
[326978335,1715670654600,-530.26820901,0.0008,120]
[326978336,1715670654609,-500.0,0.0008,120]
[326978337,1715670654618,-1667.18,0.0008,120]
[326978338,1715670654627,-500.0,0.0008,120]
[326978339,1715670654636,-500.0,0.0008,120]
[326978340,1715670654645,-539.06501941,0.0008,120]
[326978341,1715670654655,-500.0,0.0008,120]
[326978342,1715670654664,-207.94839647,0.0008,120]
[326978343,1715670654674,-503.48225911,0.0008,120]
[326978344,1715670654683,-500.0,0.0008,120]
[326978345,1715670654693,-500.0,0.0008,120]
[326978346,1715670654702,-533.762919,0.0008,120]
[326978347,1715670654712,-1978.63,0.0008,120]
[326978348,1715670654721,-493.85962615,0.0008,120]
[326978349,1715670654730,-500.0,0.0008,120]
[326978350,1715670654739,-500.0,0.0008,120]
[326978351,1715670654748,-500.0,0.0008,120]
[326978352,1715670654757,-359.67820156,0.0008,120]
[326978353,1715670654766,-500.0,0.0008,120]
[326978354,1715670654775,-500.0,0.0008,120]
[326978355,1715670654784,-500.0,0.0008,120]
[326978356,1715670654793,-461.30178984,0.0008,120]
[326978357,1715670654803,-500.0,0.0008,120]
[326978358,1715670654812,-339.31178504,0.0008,120]
[326978359,1715670654821,-500.0,0.0008,120]
[326978360,1715670654830,-500.0,0.0008,120]
[326978361,1715670654840,-500.0,0.0008,120]
[326978362,1715670654849,-500.0,0.0008,120]
[326978363,1715670654858,-500.0,0.0008,120]
[326978364,1715670654868,-284.84510739,0.0008,120]
[326978365,1715670654877,-3001.39,0.0008,120]
[326978366,1715670654886,-500.0,0.0008,120]
[326978367,1715670654894,-500.0,0.0008,120]
[326978368,1715670654904,-205.56225329,0.0008,120]
[326978369,1715670654913,-500.0,0.0008,120]
[326978370,1715670654922,-500.0,0.0008,120]
[326978371,1715670654932,-500.0,0.0008,120]
[326978372,1715670654941,-500.0,0.0008,120]
[326978373,1715670654951,-500.0,0.0008,120]
[326978374,1715670654961,-500.0,0.0008,120]
[326978375,1715670654971,-500.0,0.0008,120]
[326978376,1715670654980,-502.04,0.0008,120]
[326978377,1715670654989,-500.0,0.0008,120]
[326978378,1715670654998,-500.0,0.0008,120]